Cogmind - Beta 13 *** ADVENTURER MODE // 2024.07.15 @ 23:20:11 Player: UnifiBg Result: Destroyed by D-53 Grenadier with Mini Grenade Launcher Performance ------------- Evolutions (0) 0 Regions Visited (3) 600 Robots Destroyed (55) 275 Value Destroyed (1529) 1529 Prototype IDs (10) 200 Alien Tech Used (0) 0 Bonus (0) 0 TOTAL SCORE: 2604 Bonus ------- None Cogmind --------- Core Integrity 0/250 Matter 300/300 Energy 100/100 System Corruption 2% Temperature Cool (0) Movement Rolling (85) Location -9/Recycling Parts ------- > --- POWER (1) -------- (None) > --- PROPULSION (2) --- Wheel Armored Wheel > --- UTILITY (2) ------ (None) > --- WEAPON (2) ------- Ripper > --- INVENTORY (5) ---- Subdweller Optics Sensor Array Signal Interpreter Power Bank EM Shotgun Peak State ------------ > --- POWER ------------ Light Ion Engine > --- PROPULSION ------- Spiked Treads Subdweller Monowheel > --- UTILITY ---------- Scrap Shield > --- WEAPON ----------- Subdweller Shrapnel Launcher Ripper > --- INVENTORY -------- Subdweller Optics Sensor Array Signal Interpreter Subdweller Laser Battle Cannon [Rating: 15] Favorites ----------- Power Light Ion Engine Engine Light Ion Engine Propulsion Wheel Treads Spiked Treads Wheel Wheel Flight Unit Flight Unit Utility Scrap Shield Device Seismic Detector Storage Small Storage Unit Protection Scrap Shield Weapon Subdweller Shrapnel Launcher Energy Gun Small Laser Ballistic Gun Light Assault Rifle Ballistic Cannon Battle Cannon Launcher Subdweller Shrapnel Launcher Slashing Weapon Ripper Build | -11 -10 -10 -9 ------- Run | Yrd Mat Sub Rec Slots Evolved . | . . . . Power . | . . . . Propulsion . | . . . . Utility . | . . . . Weapon . | . . . . Parts Attached 65 | 8 22 33 2 Power 5 | 1 4 . . Engine 5 | 1 4 . . Core . | . . . . Reactor . | . . . . Propulsion 24 | 2 11 10 1 Treads 3 | . . 3 . Leg . | . . . . Wheel 18 | 2 8 7 1 Hover . | . . . . Flight 3 | . 3 . . Utility 7 | 3 1 3 . Device 3 | 2 . 1 . Storage 2 | 1 1 . . Processor . | . . . . Hackware . | . . . . Protection 2 | . . 2 . Artifact . | . . . . Weapon 29 | 2 6 20 1 Energy Gun 7 | 1 . 6 . Energy Cannon . | . . . . Ballistic Gun 5 | 1 2 2 . Ballistic Cannon 7 | . 2 5 . Launcher 8 | . 2 6 . Special Weapon . | . . . . Impact Weapon . | . . . . Slashing Weapon 2 | . . 1 1 Piercing Weapon . | . . . . Special Melee Weapon . | . . . . Unidentified Prototypes . | . . . . Parts Lost 7 | . 1 4 2 Power 1 | . . 1 . Propulsion 2 | . 1 1 . Utility 2 | . . 1 1 Weapon 2 | . . 1 1 Highest Loss Streak 2 | . 1 2 2 To Critical Strikes . | . . . . Average Slot Usage (%) 83 | . 98 81 56 Engine 13 | . 14 13 . Treads 2 | . . 2 . Wheel 22 | . 26 22 14 Device 2 | . 14 . . Storage 2 | . 14 . . Protection 11 | . . 13 14 Energy Gun 1 | . 3 1 . Ballistic Gun 4 | . 14 2 . Ballistic Cannon 7 | . 9 7 13 Launcher 10 | . 1 12 . Slashing Weapon 3 | . . 4 13 Naked Turns . | . . . . Heaviest Build 33 | 11 15 33 24 Greatest Support 40 | 26 26 40 22 Greatest Overweight (x) 10 | 2 1 10 2 Average Overweight (x) 1 | . . 1 1 Largest Inventory Capacity 8 | 8 8 8 5 Average Capacity 5 | 7 8 5 5 Most Carried 8 | 8 8 8 5 Average Carried 5 | 4 7 5 4 Final Capacity 8 | 8 8 5 5 Final Carried 8 | 8 8 5 5 Class Distribution -------------------- 43% | Subdweller-Mutant 38% | Mutant 13% | Scavenger-Mutant 4% | Derelict-Mutant Dominant Class ---------------- Scavenger-Mutant | -10/Materials Subdweller-Mutant | -10/Subcaves Mutant | -9/Recycling Resources | -11 -10 -10 -9 ----------- Run | Yrd Mat Sub Rec Matter Collected 2157 | 280 380 1195 302 Remotely . | . . . . Salvage Created 1362 | 151 451 639 121 Parts 106 | 16 40 45 5 Haulers Intercepted 1 | . 1 . . Recyclers Shooed . | . . . . Parts Field Recycled . | . . . . Retrieved Matter . | . . . . Parts Self-Destructed 14 | . . 14 . Prevented . | . . . . Kills | -11 -10 -10 -9 ------- Run | Yrd Mat Sub Rec Combat Hostiles Destroyed 43 | . 12 28 3 Melee 3 | . . . 3 Guns 14 | . 9 5 . Cannons 9 | . 1 8 . AOE 17 | . 2 15 . Classes Destroyed 12 | 2 6 3 1 Worker 3 | . 3 . . Builder 2 | . 2 . . Tunneler 4 | 4 . . . Hauler 1 | . 1 . . Recycler 1 | 1 . . . Turret 1 | . . 1 . Watcher 2 | . 2 . . Swarmer 8 | . 6 2 . Grunt 11 | . 6 3 2 Sentry 1 | . . 1 . Programmer 1 | . . . 1 Subdweller 22 | . . 22 . Best Kill Streak 4 | 3 4 3 3 Combat Bots Only 3 | . 3 2 3 Max Kills in Single Turn 2 | 1 2 2 1 Gunslinging . | . . . . Exploded 2 | . 1 2 . Melee 1 | . . . 1 Uniques/NPCs Destroyed . | . . . . Combat | -11 -10 -10 -9 -------- Run | Yrd Mat Sub Rec Hostile Shots Fired 246 | . 72 158 16 Missed 75 | . 22 53 . Damage Taken 2298 | . 390 1680 228 Core 270 | . 72 96 102 Absorbed by Shields . | . . . . Ignored by Resistances 615 | . 121 432 62 Core Remaining (%) 100 | 100 . . . Volleys Fired 170 | 10 53 107 . Largest 2 | 2 2 2 . Hottest 99 | 60 60 99 . Shots Fired 285 | 20 102 163 . Gun 140 | 20 76 44 . Cannon 80 | . 22 58 . Launcher 65 | . 4 61 . Special . | . . . . Kinetic 185 | 10 75 100 . Thermal 45 | 10 23 12 . Explosive 43 | . 4 39 . Electromagnetic 12 | . . 12 . Robot Hit Streak 36 | 10 14 36 . Robot Miss Streak 3 | 1 3 2 . Penetration Max . | . . . . Secondary Targets 1 | . 1 . . Max Gunslinging Chain 1 | . 1 . . Shots Hit Robots 184 | 14 69 98 3 Core Hits 93 | 7 32 53 1 Critical Kills 1 | . 1 . . Critical Parts Destroyed . | . . . . Critical Strikes 2 | . 1 1 . Destroy 1 | . 1 . . Blast 1 | . . 1 . Melee Attacks 15 | . . 12 3 Impact . | . . . . Slashing 15 | . . 12 3 Piercing . | . . . . Sneak Attacks . | . . . . Combat Hostiles . | . . . . Follow-up Attacks . | . . . . Damage Inflicted 4867 | 141 1034 3579 113 Guns 1292 | 141 517 634 . Cannons 1011 | . 234 777 . Explosions 2451 | . 283 2168 . Melee 113 | . . . 113 Ramming . | . . . . Kinetic 2622 | 32 534 2056 . Thermal 473 | 109 217 147 . Explosive 1412 | . 194 1218 . Electromagnetic 247 | . 89 158 . Impact . | . . . . Slashing 113 | . . . 113 Piercing . | . . . . Highest Corruption 2 | . . . 2 Average Corruption 1 | . . . 1 Corruption Purged . | . . . . Corruption Blocked . | . . . . Overload Shots . | . . . . Overflow Damage 66 | . 12 13 41 Projectiles 6 | . 6 . . Explosions 19 | . 6 13 . Melee 41 | . . . 41 Knockbacks 8 | . 2 6 . Impact . | . . . . Kinetic 8 | . 2 6 . Secondary . | . . . . Self-Inflicted Damage 53 | . 27 26 . Shots 4 | . 1 3 . Rammed . | . . . . Targets Rammed . | . . . . Kicked . | . . . . Crushed . | . . . . Highest Temperature 189 | 60 129 189 . Average Temperature 34 | 26 30 104 . Received Heat Transfer 752 | . 138 584 30 Siege Activations . | . . . . Robots Corrupted . | . . . . Combat Hostiles . | . . . . Parts Fried 1 | . . 1 . Impact Corruptions . | . . . . Robots Melted . | . . . . Combat Hostiles . | . . . . Parts Melted 1 | . 1 . . Heat Transferred 925 | 250 500 175 . Parts Sabotaged . | . . . . Parts Stolen . | . . . . Parts Stripped . | . . . . Power Chain Reactions . | . . . . Alert | -11 -10 -10 -9 ------- Run | Yrd Mat Sub Rec Peak Influence 175 | 25 175 . 143 Initial 99 | . 13 . 99 Average 77 | 9 79 . 103 Maximum Alert Level . | . . . . Low Security (%) 100 | 100 100 . 100 Level 1 . | . . . . Level 2 . | . . . . Level 3 . | . . . . Level 4 . | . . . . Level 5 . | . . . . High Security . | . . . . Max Security . | . . . . Squads Dispatched 1 | . 1 . . Investigation 1 | . 1 . . Extermination . | . . . . Reinforcement . | . . . . Assault . | . . . . Garrison . | . . . . Intercept . | . . . . Searches Triggered . | . . . . Construction Impeded . | . . . . Haulers Reinforced . | . . . . Active Scanning Responses . | . . . . Cargo Convoy Interrupts . | . . . . Stealth | -11 -10 -10 -9 --------- Run | Yrd Mat Sub Rec Distress Signals . | . . . . Communications Jammed . | . . . . Distress Signals . | . . . . Times Spotted 86 | . 21 61 4 Peak Tracking Total 4 | . 4 4 4 Tactical Retreats 4 | . 1 3 . Traps | -11 -10 -10 -9 ------- Run | Yrd Mat Sub Rec Traps Triggered 6 | . 1 5 . Indirectly . | . . . . Trap Hack Attempts . | . . . . Triggered . | . . . . Disarmed . | . . . . Reprogrammed 6 | . 6 . . Reused 1 | . 1 . . Traps Extracted . | . . . . Installed . | . . . . Triggered 1 | . 1 . . Machines | -11 -10 -10 -9 ---------- Run | Yrd Mat Sub Rec Machines Disabled 7 | . 2 5 . Max in Single Turn 4 | . 1 4 . Machines Repaired . | . . . . Machines Dismantled . | . . . . Machines Sabotaged . | . . . . Overloaded Fab Kills . | . . . . Hacking | -11 -10 -10 -9 --------- Run | Yrd Mat Sub Rec Machines Accessed 13 | . 8 2 3 Terminals 10 | . 8 . 2 Fabricators . | . . . . Repair Stations . | . . . . Recycling Units 1 | . . . 1 Scanalyzers . | . . . . Garrison Access . | . . . . Total Hacks 47 | . 29 12 6 Successful 33 | . 17 12 4 Failed 14 | . 12 . 2 Catastrophic 1 | . 1 . . Database Lockouts . | . . . . Manual 18 | . 14 . 4 Terminals 34 | . 29 . 5 Fabricators . | . . . . Repair Stations . | . . . . Recycling Units 1 | . . . 1 Scanalyzers . | . . . . Garrison Access . | . . . . Terminal Hacks 24 | . 11 12 1 Record 11 | . . 11 . Terminal Index 1 | . 1 . . Unreport Threat 1 | . 1 . . Locate Traps 1 | . 1 . . Reprogram Traps 1 | . 1 . . Dispatch Records 1 | . 1 . . Maintenance Status 1 | . . . 1 Security Status 1 | . 1 . . Patrol Status 1 | . 1 . . Hauler Manifests 1 | . 1 . . Registered Components 1 | . 1 . . Zone Layout 2 | . 2 . . Derelict Proto ID Bank 1 | . . 1 . Fabricator Hacks . | . . . . Repair Station Hacks . | . . . . Recycling Unit Hacks 1 | . . . 1 Retrieve Components 1 | . . . 1 Scanalyzer . | . . . . Garrison Access Hacks . | . . . . Unauthorized Hacks 8 | . 6 . 2 Terminals 8 | . 6 . 2 Botnet 8 | . 6 . 2 Fabricators . | . . . . Repair Stations . | . . . . Recycling Units . | . . . . Scanalyzers . | . . . . Garrison Access . | . . . . Data Cores Recovered . | . . . . Used . | . . . . Hacking Detections 7 | . 7 . . Full Trace Events 1 | . 1 . . Feedback Events . | . . . . Feedback Blocked . | . . . . Robot Schematics Acquired . | . . . . Robots Built . | . . . . Authchips . | . . . . Time . | . . . . Total Robot Build Rating . | . . . . Part Schematics Acquired . | . . . . Parts Built . | . . . . Authchips . | . . . . Time . | . . . . Total Part Build Rating . | . . . . Parts Repaired . | . . . . Time . | . . . . Parts Recycled . | . . . . Recycled Matter . | . . . . Retrieved Matter . | . . . . Retrieved Components 3 | . . . 3 Parts Scanalyzed . | . . . . Part Schematics Acquired . | . . . . Parts Damaged . | . . . . Bothacking | -11 -10 -10 -9 ------------ Run | Yrd Mat Sub Rec Used RIF Installer . | . . . . Robots Hacked . | . . . . Non-combat . | . . . . Combat . | . . . . Robot Hacks Applied . | . . . . Relay Couplers Released . | . . . . Fabnet Peak Effective % . | . . . . Robots Rewired . | . . . . Allies Hacked . | . . . . Hacks Repelled . | . . . . Allies | -11 -10 -10 -9 -------- Run | Yrd Mat Sub Rec Total Allies . | . . . . Largest Group . | . . . . Highest-Rated Group . | . . . . Highest-Rated Ally . | . . . . Total Orders . | . . . . Ally Attacks . | . . . . Total Damage . | . . . . Kills . | . . . . Allies Corrupted . | . . . . Allies Melted . | . . . . Intel | -11 -10 -10 -9 ------- Run | Yrd Mat Sub Rec Robot Analysis Total . | . . . . Derelict Logs Recovered 2 | . . 2 . Drone Launches . | . . . . Drone Recoveries . | . . . . Exploration | -11 -10 -10 -9 ------------- Run | Yrd Mat Sub Rec Turns Passed 6077 | 113 1060 4670 234 Spaces Moved 4712 | 69 818 3622 203 Core 50 | 6 . 44 . Treads 177 | . . 177 . Legs . | . . . . Wheels 4484 | 63 817 3401 203 Hover . | . . . . Flight 1 | . 1 . . Fastest Speed 50 | 50 80 80 85 Average Speed 110 | 91 82 116 109 Slowest Speed 550 | 150 117 550 110 Overloaded Moves . | . . . . Propulsion Burnouts . | . . . . Robots Hopped . | . . . . Cave-ins Triggered . | . . . . Exploration Rate (%) 55 | 3 93 96 29 Regions Visited 3 Branch Regions 2 Pre-discovered Areas 1 | . . 1 . Known Exits Taken . | . . . . Unknown Exits Taken 3 | 1 1 1 . Scrap Searched 22 | . . 22 . Spaces Dug 66 | . . 66 . Terrain Destroyed 453 | . 33 420 . Melee . | . . . . Projectile 3 | . . 3 . AOE 450 | . 33 417 . Terrain Rammed . | . . . . Walls Destroyed . | . . . . Machines Disabled . | . . . . Actions | -11 -10 -10 -9 --------- Run | Yrd Mat Sub Rec Total 5297 | 97 1118 3872 210 Wait 220 | . 194 25 1 Move 4709 | 68 817 3621 203 Hop . | . . . . Pick Up 32 | 9 10 12 1 Fast Attach 28 | 8 4 15 1 Attach 5 | . 3 1 1 Detach . | . . . . Swap 32 | . 15 17 . Drop 60 | 2 22 36 . Fire 170 | 10 53 107 . Melee 15 | . . 12 3 Ram . | . . . . Kick . | . . . . Crush . | . . . . Escape Stasis . | . . . . Rewire . | . . . . Trap . | . . . . Miscellaneous 26 | . . 26 . Route ------- -11/Scrapyard -10/Materials (discovered 6 exits: [*Mat x3] / [*Min x2] / *Sub) -10/Subcaves (discovered 3 exits: [*Mat x2] / *Rec) -9/Recycling History --------- Turn | Location | Event 19 | -11/Scrapyard | Discovered new exit (range 15) 114 | -11/Scrapyard | Entered Materials 307 | -10/Materials | Build established: Mutant 333 | -10/Materials | Discovered new exit (range 8) 437 | -10/Materials | Discovered new exit (range 16) 642 | -10/Materials | Discovered new exit (range 5) 683 | -10/Materials | Build established: Scavenger-Mutant 817 | -10/Materials | Discovered new exit (range 13) 851 | -10/Materials | Discovered new exit (range 5) 1169 | -10/Materials | Discovered new exit (range 4) 1174 | -10/Materials | Entered Subcaves 1281 | -10/Subcaves | Learned location of Zion (-6) 1281 | -10/Subcaves | Met a Zionite searching for "candidates" 1385 | -10/Subcaves | Learned Materials emergency access door positions 1481 | -10/Subcaves | Build established: Mutant 1634 | -10/Subcaves | Shifting Twisted Machinery released Riot Gun 1709 | -10/Subcaves | Ambushed by Subdweller buried in earth 1793 | -10/Subcaves | Disturbed a concealed Subdweller 1920 | -10/Subcaves | Discovered new exit (range 14) 2042 | -10/Subcaves | A swath of the cavern ceiling suddenly collapsed 2205 | -10/Subcaves | Learned Materials interactive machine intel 2456 | -10/Subcaves | Build established: Subdweller-Mutant 2511 | -10/Subcaves | Discovered new exit (range 15) 2548 | -10/Subcaves | Visited Clippyterm 2552 | -10/Subcaves | Learned Factory garrison access intel 2567 | -10/Subcaves | A swath of the cavern ceiling suddenly collapsed 2639 | -10/Subcaves | Ambushed by Subdweller buried in earth 2804 | -10/Subcaves | Shifting Twisted Machinery released Sub. Shrapnel Launcher 2841 | -10/Subcaves | Shifting Twisted Machinery released Sub. Optics 3121 | -10/Subcaves | Disturbed a concealed Subdweller 3127 | -10/Subcaves | Core integrity fell below 50% 3129 | -10/Subcaves | Disturbed a concealed Subdweller 4286 | -10/Subcaves | Visited 4L-MR0's lab 4320 | -10/Subcaves | Found Power Bank 4391 | -10/Subcaves | Ambushed by Subdwellers from Twisted Machinery 4772 | -10/Subcaves | Shifting Twisted Machinery released Battle Rifle 4796 | -10/Subcaves | Shifting Twisted Machinery released Battle Rifle 5050 | -10/Subcaves | Discovered new exit (range 15) 5081 | -10/Subcaves | Ambushed by Subdweller buried in earth 5608 | -10/Subcaves | Build established: Mutant 5674 | -10/Subcaves | A Subdweller sparked back to life 5674 | -10/Subcaves | A Subdweller sparked back to life 5844 | -10/Subcaves | Entered Recycling 6075 | -9/Recycling | Core integrity fell below 20% 6078 | -9/Recycling | Destroyed by D-53 Grenadier with Mini Grenade Launcher Last Messages --------------- 06067_ Battle Cannon destroyed. 06068_ Acquired 37 matter. 06070_ Destroyed Sml. Laser. 06070_ G-34 Mercenary destroyed. 06070_ Scrap Shield destroyed. 06071_ R-06 Scavenger collects Sml. Laser. 06072_ I-25 Savior destroyed. 06072_ T-07 Excavator destroyed. 06072_ B-36 Bruiser destroyed. 06072_ T-07 Excavator destroyed. 06073_ Destroyed Imp. Heat Sink. 06073_ P-60 Hacker destroyed. 06074_ R-06 Scavenger collects Imp. Terrain Scanner. 06074_ Y-45 Defender destroyed. 06074_ H-55 Commando destroyed. 06074_ B-36 Bruiser destroyed. 06074_ I-25 Savior destroyed. 06074_ K-01 Serf destroyed. 06074_ B-36 Bruiser destroyed. 06074_ I-25 Savior destroyed. Map ----- +----------------------------------------------------+ | ?????????????????????????????? | | ?????????????????????????????? | | ?????????????????????????????? | | ?????????????????????????????? | | ?????????????????????????????? | | ?????????????????????????????? | | ?????????????????????????????? | | ?????????????????????????????? | | ?????????????????????????????? | | ??????????????? ???????????? | | ??????????????! ???????????? | | ??????????????! ???????????? | | ??????????????! #??????????? | | ??????????????# +??????????? | | ??????????????# #??????????? | | ??????????????# #??????????? | | ??????????????# #??????????? | | ??????????????# #??##??????? | | ??????????????# #### #####?? | | ??????????????# # #?? | | ??????????????# # %!%#?? | | ??????????????# # % %%#?? | | ??????????????# # * *b /##? | | ??????????????# + ! #? | | ??????????????# # % = #? | | ??????????????# #s r=%%@ ##? | | ??????????????# # d=%! d#?? | | ?????########## #k td #?? | | ?????# # ##########?? | | ?????# # #??????????? | | ?????# # #??????????? | | ?????# # #??????????? | | ?????# ! / # #??????????? | | ?????# + #??????????? | | ?????# [!# ###????????? | | ?????# # ""#????????? | | ?????# ! # Y"#????????? | | ?????########## ""#????????? | | ????????????### ##########?? | | ????######### # # #?? | | ##### # # "T" #?? | | + # # #?? | | ?#### # # #?? | | ????# + + #?? | | ????# # # """ #?? | | ##### # # """ #?? | | # + # # !!""" #?? | | # ### # ! # #?? | | # #?########### ##"Y"#####?? | | #???????????######"""#?????? | +----------------------------------------------------+ Best States ------------- Heat Dissipation 25 Energy Generation 10 Energy Capacity 125 Matter Stores 300 Matter Capacity 300 Sight Range 21 Terrain Scan Range 16 Terrain Scan Density 10 Armor Coverage 800 Resistance: KI 20 Resistance: TH 20 Resistance: EX 20 Resistance: EM 20 Resistance: I 20 Resistance: S 20 Resistance: P 20 Evasion (%) 44 Recoil Reduction 2 Offensive Hacking 10 Item Schematics ----------------- None Robot Schematics ------------------ None Fabricated ------------ Nothing Alien Tech Used ----------------- None Achievements -------------- Dramatic Entrance Challenges ------------ None Game ------ Seed SurgeMachineRouter Manual? 0 Play Time 01:03:19 Cumulative 31.7 hours Start 2024.07.15 @ 22:14:43 End 2024.07.15 @ 23:20:11 Sessions 1 Manual Loads 0 Difficulty Adventurer Special Mode None Game No. 21 Rogue 0 Adventurer 21 Explorer 0 Win Type - Total 0 Types 0/0/0/0/0/0/0/0/0 Lore% 23 Gallery% 35 Achievement% 23 Wizard Run 0 Options --------- Layout 2 ASCII 0 Keyboard 0 Movement Mouse Keybinds 0 Fullscreen 2 Font 20/SmallcapsGlow Map View 56x54 Zoom Use 0% Tactical HUD 1 Map Filters NONE Filters NONE Steam X RUN: 5fa14166-f139-43f4-a361-ea1256bb54c6